Cogmind - Beta 13 @@@ ROGUE MODE // 2024.04.06 @ 14:43:17 Player: BionicSandwich Result: Self-destructed Performance ------------- Evolutions (3) 1500 Regions Visited (10) 2000 Robots Destroyed (47) 235 Value Destroyed (1977) 1977 Prototype IDs (33) 660 Alien Tech Used (0) 0 Bonus (508) 508 TOTAL SCORE: 6880 Bonus ------- Follower Combat Kills 208 Aligned with FarCom 300 Cogmind --------- Core Integrity 442/700 Matter 243/300 Energy 150/150 System Corruption 0% Temperature Hot (290) Movement Treading (320) Ox2 Location -7/Lower Caves Parts ------- > --- POWER (1) -------- Micro Nuclear Core > --- PROPULSION (5) --- Medium Treads > --- UTILITY (5) ------ High-capacity Storage Unit Trap Scanner Salvage Targeting Computer > --- WEAPON (2) ------- Plasma Cannon Precision Grenade Launcher > --- INVENTORY (20) --- Cold Fusion Reactor Antimatter Reactor Heat Sink Improved Heat Sink Improved Cooling System Improved Cooling System High-capacity Matter Pod (200) Particle Charger Weapon Cycler Improved Medium Armor Plating Shock Absorption System System Restoration Module Improved Field Recycling Unit (34) Makeshift Shrapnel Gun Mining Laser Peak State ------------ > --- POWER ------------ Antimatter Reactor > --- PROPULSION ------- Medium Treads Heavy Treads > --- UTILITY ---------- High-capacity Storage Unit Trap Scanner Improved Signal Interpreter System Restoration Module Improved Field Recycling Unit > --- WEAPON ----------- Arc Projector Precision Grenade Launcher > --- INVENTORY -------- Micro Nuclear Core Cold Fusion Reactor Antimatter Reactor Heat Sink Improved Heat Sink Improved Cooling System Improved Cooling System High-capacity Matter Pod Experimental Sensor Array Particle Charger Weapon Cycler Reaction Control System Improved Medium Armor Plating Improved Medium Armor Plating Improved Medium Armor Plating System Restoration Module Improved Trap Extractor Mining Laser [Rating: 54] Favorites ----------- Power Micro Nuclear Core Engine Ion Engine Power Core Micro Nuclear Core Reactor Antimatter Reactor Propulsion Aluminum Leg Treads Medium Treads Leg Aluminum Leg Utility High-capacity Storage Unit Device Trap Scanner Storage High-capacity Storage Unit Processor Improved Signal Interpreter Protection Improved Medium Armor Plating Weapon Makeshift Shrapnel Gun Energy Gun Particle Gun Energy Cannon Plasma Cannon Ballistic Gun Makeshift Shrapnel Gun Ballistic Cannon Light Cannon Launcher Precision Grenade Launcher Special Weapon Field Lobotomy Kit Build | -11 -10 -10 -10 -9 -8 -8 -7 -7 -7 -7 ------- Run | Yrd Mat Min Exi Min Mat Sto Fac Was Fac Low Slots Evolved 6 | . . . . . 4 . 2 . . . Power . | . . . . . . . . . . . Propulsion 3 | . . . . . 3 . . . . . Utility 3 | . . . . . 1 . 2 . . . Weapon . | . . . . . . . . . . . Parts Attached 117 | 3 11 5 1 3 17 29 7 6 15 20 Power 12 | 1 1 1 . . 3 4 . 1 . 1 Engine 9 | 1 1 1 . . 3 3 . . . . Core 1 | . . . . . . . . . . 1 Reactor 2 | . . . . . . 1 . 1 . . Propulsion 21 | 2 1 1 . . 4 8 1 2 1 1 Treads 3 | . . . . . . . . 2 1 . Leg 18 | 2 1 1 . . 4 8 1 . . 1 Wheel . | . . . . . . . . . . . Hover . | . . . . . . . . . . . Flight . | . . . . . . . . . . . Utility 41 | . 1 1 1 2 3 6 3 2 10 12 Device 19 | . . 1 . 1 1 2 2 1 7 4 Storage 2 | . 1 . 1 . . . . . . . Processor 3 | . . . . . 1 . 1 . . 1 Hackware . | . . . . . . . . . . . Protection 17 | . . . . 1 1 4 . 1 3 7 Artifact . | . . . . . . . . . . . Weapon 43 | . 8 2 . 1 7 11 3 1 4 6 Energy Gun 12 | . 5 1 . 1 1 . 1 1 2 . Energy Cannon 2 | . . . . . . . 1 . . 1 Ballistic Gun 18 | . 2 . . . 4 8 1 . . 3 Ballistic Cannon 1 | . . 1 . . . . . . . . Launcher 7 | . 1 . . . 2 . . . 2 2 Special Weapon 3 | . . . . . . 3 . . . . Impact Weapon . | . . . . . . . . . . . Slashing Weapon . | . . . . . . . . . . . Piercing Weapon . | . . . . . . . . . . . Special Melee Weapon . | . . . . . . . . . . . Unidentified Prototypes 5 | . . 1 . . 2 1 1 . . . Parts Lost 31 | . . 3 . . . 11 1 6 1 9 Power 5 | . . 1 . . . 2 . 1 . 1 Propulsion 10 | . . 1 . . . 5 1 2 . 1 Utility 8 | . . . . . . 2 . 1 1 4 Weapon 8 | . . 1 . . . 2 . 2 . 3 Highest Loss Streak 9 | . . 2 . . . 9 1 5 1 4 To Critical Strikes . | . . . . . . . . . . . Average Slot Usage (%) 82 | . 81 89 100 99 93 98 90 61 72 69 Engine 5 | . 13 14 14 14 9 8 7 2 . . Core 1 | . . . . . . . . . . 5 Reactor 1 | . . . . . . . . 4 7 1 Treads 4 | . . . . . . . . 4 13 8 Leg 18 | . 28 27 28 28 41 44 32 8 . . Device 8 | . . 5 14 2 . . 5 11 20 11 Storage 8 | . 12 14 14 14 9 9 7 7 7 7 Processor 5 | . . . . . 6 9 12 9 7 5 Protection 7 | . . . . 11 8 8 7 2 1 11 Energy Gun 5 | . 20 11 14 14 7 . 6 3 6 . Ballistic Gun 7 | . 4 4 . . 5 15 7 3 . 11 Ballistic Cannon 2 | . . 11 14 14 1 . . . . . Launcher 2 | . 1 . . . 3 . . . 6 2 Naked Turns . | . . . . . . . . . . . Heaviest Build 81 | 5 14 17 52 56 56 64 58 69 81 81 Greatest Support 98 | 20 20 20 20 20 55 55 57 70 98 98 Greatest Overweight (x) 25 | . . . 2 2 1 3 1 15 . 25 Average Overweight (x) 1 | . . . . 2 . . 1 . . 6 Largest Inventory Capacity 20 | 5 8 8 20 20 20 20 20 20 20 20 Average Capacity 18 | 5 7 8 10 20 20 20 20 20 20 20 Most Carried 20 | 4 8 8 7 11 16 20 17 18 20 20 Average Carried 14 | 2 6 5 5 10 11 18 14 15 17 16 Final Capacity 20 | 5 8 8 20 20 20 20 20 20 20 20 Final Carried 19 | 4 8 5 7 11 16 12 16 16 19 15 Class Distribution -------------------- 63% | Mutant 23% | Scavenger-Mutant 13% | Derelict-Mutant Dominant Class ---------------- Mutant | -10/Materials Mutant | -10/Mines Mutant | -10/Exiles Mutant | -9/Mines Mutant | -8/Materials Scavenger-Mutant | -8/Storage Scavenger-Mutant | -7/Factory Scavenger-Mutant | -7/Waste Mutant | -7/Factory Mutant | -7/Lower Caves Resources | -11 -10 -10 -10 -9 -8 -8 -7 -7 -7 -7 ----------- Run | Yrd Mat Min Exi Min Mat Sto Fac Was Fac Low Matter Collected 2632 | 202 94 176 . 23 226 908 103 142 171 587 Remotely . | . . . . . . . . . . . Salvage Created 1785 | . 94 153 . 32 181 599 127 220 87 292 Parts 93 | . 6 8 . 4 9 30 15 4 11 6 Haulers Intercepted . | . . . . . . . . . . . Recyclers Shooed 1 | . . . . . 1 . . . . . Parts Field Recycled 30 | . . . . . . 5 . . 25 . Retrieved Matter 263 | . . . . . . 57 . . 206 . Parts Self-Destructed 5 | . . . . . . . . . . 5 Prevented 1 | . . . . . . . . . . 1 Kills | -11 -10 -10 -10 -9 -8 -8 -7 -7 -7 -7 ------- Run | Yrd Mat Min Exi Min Mat Sto Fac Was Fac Low Combat Hostiles Destroyed 45 | . 2 4 . 3 4 13 3 1 4 11 Guns 35 | . 2 3 . 1 4 13 3 1 1 7 Cannons 3 | . . 1 . 2 . . . . . . AOE 7 | . . . . . . . . . 3 4 Classes Destroyed 8 | . 1 . . 1 1 . 1 1 2 1 Worker 1 | . . . . . . . . . 1 . Builder 1 | . . . . . . . . . 1 . Swarmer 7 | . . . . 3 . . . . . 4 Grunt 23 | . 2 4 . . 3 9 . . 2 3 Brawler 3 | . . . . . . . . . . 3 Sentry 7 | . . . . . 1 4 1 . . 1 Programmer 4 | . . . . . . . 2 . 2 . Compactor 1 | . . . . . . . . 1 . . Best Kill Streak 4 | . 2 2 . 3 2 3 2 1 4 4 Combat Bots Only 4 | . 2 2 . 3 2 3 2 1 3 4 Max Kills in Single Turn 3 | . 1 1 . 1 1 1 1 1 3 3 Gunslinging . | . . . . . . . . . . . Exploded 3 | . . . . . . . . . 2 3 Melee . | . . . . . . . . . . . Uniques/NPCs Destroyed . | . . . . . . . . . . . Combat | -11 -10 -10 -10 -9 -8 -8 -7 -7 -7 -7 -------- Run | Yrd Mat Min Exi Min Mat Sto Fac Was Fac Low Hostile Shots Fired 312 | . 9 30 . 15 22 120 14 6 17 79 Missed 68 | . 1 7 . 1 2 21 3 . 6 27 Damage Taken 4702 | . 147 307 . 111 329 1517 164 242 580 1305 Core 657 | . 47 58 . 22 44 228 47 34 146 31 Absorbed by Shields . | . . . . . . . . . . . Redirected to Shielding 75 | . . . . . . . . . . 75 Core Remaining (%) 66 | 100 . . . 49 . 50 . . . . Volleys Fired 191 | . 15 16 . 6 17 59 8 23 8 39 Largest 2 | . 2 2 . 2 2 2 2 2 2 2 Hottest 116 | . 80 60 . 115 105 48 88 105 91 116 Shots Fired 351 | . 29 30 . 12 27 110 16 37 17 73 Gun 309 | . 26 23 . 6 24 105 16 37 8 64 Cannon 16 | . . 7 . 6 . . . . . 3 Launcher 21 | . 3 . . . 3 . . . 9 6 Special 5 | . . . . . . 5 . . . . Kinetic 245 | . 8 23 . 6 14 104 8 24 . 58 Thermal 48 | . 7 . . 6 10 1 8 13 . 3 Explosive 21 | . 3 . . . 3 . . . 9 6 Electromagnetic 32 | . 11 7 . . . . . . 8 6 Robot Hit Streak 15 | . 8 8 . 3 12 15 6 10 9 11 Robot Miss Streak 7 | . 2 3 . 7 4 4 1 3 1 5 Penetration Max . | . . . . . . . . . . . Secondary Targets 3 | . . 1 . . . 1 . . . 1 Max Gunslinging Chain 1 | . . 1 . . . 1 . . . 1 Shots Hit Robots 254 | . 17 21 . 5 13 88 12 29 13 56 Core Hits 133 | . 6 9 . 3 11 43 6 5 13 37 Critical Kills 1 | . . . . . . 1 . . . . Critical Parts Destroyed . | . . . . . . . . . . . Critical Strikes 3 | . . 1 . . . 1 . 1 . . Burn 1 | . . . . . . . . 1 . . Destroy 1 | . . . . . . 1 . . . . Blast 1 | . . 1 . . . . . . . . Melee Attacks . | . . . . . . . . . . . Impact . | . . . . . . . . . . . Slashing . | . . . . . . . . . . . Piercing . | . . . . . . . . . . . Sneak Attacks . | . . . . . . . . . . . Combat Hostiles . | . . . . . . . . . . . Follow-up Attacks . | . . . . . . . . . . . Damage Inflicted 5336 | . 328 326 . 95 307 1307 240 552 557 1624 Guns 3916 | . 217 225 . 45 274 1286 240 552 31 1046 Cannons 192 | . . 88 . 50 . . . . . 54 Explosions 1183 | . 109 . . . 33 . . . 517 524 Melee . | . . . . . . . . . . . Ramming 45 | . 2 13 . . . 21 . . 9 . Kinetic 3156 | . 49 244 . 50 57 1286 118 318 . 1034 Thermal 716 | . 44 . . 45 217 . 122 234 . 54 Explosive 1183 | . 109 . . . 33 . . . 517 524 Electromagnetic 236 | . 124 69 . . . . . . 31 12 Impact . | . . . . . . . . . . . Slashing . | . . . . . . . . . . . Piercing . | . . . . . . . . . . . Highest Corruption 17 | . . . . . 2 2 2 17 17 5 Average Corruption 4 | . . . . . 2 2 1 10 14 1 Corruption Purged 22 | . . . . . . . . . 17 5 Corruption Blocked . | . . . . . . . . . . . Effects 49 | . . . . . 1 19 3 8 9 9 Message Errors 13 | . . . . . . 3 3 1 2 4 Matter Fused 11 | . . . . . . 6 . 2 3 . Heat Flow Errors 6 | . . . . . . 4 . . . 2 Energy Discharges 1 | . . . . . . 1 . . . . Parts Rejected 1 | . . . . . . . . 1 . . Parts Fused 1 | . . . . . 1 . . . . . Data Loss (minor) 11 | . . . . . . 3 . 3 3 2 Misfires 5 | . . . . . . 2 . 1 1 1 Overload Shots . | . . . . . . . . . . . Overflow Damage 16 | . . . . . . . . . 5 11 Projectiles . | . . . . . . . . . . . Explosions 16 | . . . . . . . . . 5 11 Melee . | . . . . . . . . . . . Knockbacks 3 | . . 3 . . . . . . . . Impact 1 | . . 1 . . . . . . . . Kinetic 2 | . . 2 . . . . . . . . Secondary . | . . . . . . . . . . . Self-Inflicted Damage 316 | . 26 . . . 60 . . . 187 43 Shots 9 | . 1 . . . 2 . . . 4 2 Rammed . | . . . . . . . . . . . Targets Rammed 8 | . 1 1 . . . 5 . . 1 . Kicked 7 | . 1 1 . . . 5 . . . . Crushed 1 | . . . . . . . . . 1 . Highest Temperature 410 | . 45 44 . 399 314 254 36 24 111 410 Average Temperature 83 | . 20 23 . 197 117 76 16 12 42 127 Received Heat Transfer 1788 | . 72 216 . . 108 819 9 . 45 519 Effects 2 | . . . . . . 1 . . . 1 Energy Bleed 1 | . . . . . . 1 . . . . Matter Decay 1 | . . . . . . . . . . 1 Siege Activations . | . . . . . . . . . . . Robots Corrupted . | . . . . . . . . . . . Combat Hostiles . | . . . . . . . . . . . Parts Fried . | . . . . . . . . . . . Impact Corruptions . | . . . . . . . . . . . Robots Melted . | . . . . . . . . . . . Combat Hostiles . | . . . . . . . . . . . Parts Melted 1 | . . . . . 1 . . . . . Heat Transferred 1618 | . 100 . . 100 500 . 222 596 . 100 Parts Sabotaged . | . . . . . . . . . . . Parts Stolen . | . . . . . . . . . . . Parts Stripped . | . . . . . . . . . . . Power Chain Reactions . | . . . . . . . . . . . Alert | -11 -10 -10 -10 -9 -8 -8 -7 -7 -7 -7 ------- Run | Yrd Mat Min Exi Min Mat Sto Fac Was Fac Low Peak Influence 320 | . 123 117 . 73 162 320 176 61 119 . Initial 91 | . . 47 . . . 68 91 61 . . Average 97 | . 33 107 . 10 71 193 138 15 58 . Maximum Alert Level 1 | . . . . . . 1 . . . . Low Security (%) 86 | 100 100 100 . 100 100 52 100 100 100 . Level 1 13 | . . . . . . 47 . . . . Level 2 . | . . . . . . . . . . . Level 3 . | . . . . . . . . . . . Level 4 . | . . . . . . . . . . . Level 5 . | . . . . . . . . . . . High Security . | . . . . . . . . . . . Max Security . | . . . . . . . . . . . Squads Dispatched 7 | . . . . . . 3 1 . 3 . Investigation 3 | . . . . . . 2 . . 1 . Extermination 3 | . . . . . . . 1 . 2 . Reinforcement 1 | . . . . . . 1 . . . . Assault . | . . . . . . . . . . . Garrison . | . . . . . . . . . . . Intercept . | . . . . . . . . . . . Searches Triggered . | . . . . . . . . . . . Construction Impeded . | . . . . . . . . . . . Haulers Reinforced . | . . . . . . . . . . . Active Scanning Responses . | . . . . . . . . . . . Cargo Convoy Interrupts . | . . . . . . . . . . . Stealth | -11 -10 -10 -10 -9 -8 -8 -7 -7 -7 -7 --------- Run | Yrd Mat Min Exi Min Mat Sto Fac Was Fac Low Distress Signals 2 | . . . . . 1 1 . . . . Communications Jammed . | . . . . . . . . . . . Distress Signals . | . . . . . . . . . . . Times Spotted 75 | . 6 4 . 3 12 26 4 2 4 14 Peak Tracking Total 5 | . 3 2 . 3 3 4 2 2 3 5 Tactical Retreats 7 | . . . . . 2 3 . . . 2 Traps | -11 -10 -10 -10 -9 -8 -8 -7 -7 -7 -7 ------- Run | Yrd Mat Min Exi Min Mat Sto Fac Was Fac Low Traps Triggered 5 | . 1 . . . 1 1 1 . 1 . Indirectly . | . . . . . . . . . . . Trap Hack Attempts . | . . . . . . . . . . . Triggered . | . . . . . . . . . . . Disarmed . | . . . . . . . . . . . Reprogrammed . | . . . . . . . . . . . Reused . | . . . . . . . . . . . Traps Extracted . | . . . . . . . . . . . Installed . | . . . . . . . . . . . Triggered 1 | . . . . . . . . . . 1 Machines | -11 -10 -10 -10 -9 -8 -8 -7 -7 -7 -7 ---------- Run | Yrd Mat Min Exi Min Mat Sto Fac Was Fac Low Machines Disabled 4 | . 1 . . . . . . . 3 . Max in Single Turn 3 | . 1 . . . . . . . 3 . Machines Repaired . | . . . . . . . . . . . Machines Dismantled . | . . . . . . . . . . . Machines Sabotaged . | . . . . . . . . . . . Overloaded Fab Kills . | . . . . . . . . . . . Hacking | -11 -10 -10 -10 -9 -8 -8 -7 -7 -7 -7 --------- Run | Yrd Mat Min Exi Min Mat Sto Fac Was Fac Low Machines Accessed 12 | . 1 . 1 1 . 5 2 . 1 1 Terminals 7 | . 1 . . . . 5 1 . . . Fabricators 1 | . . . . . . . . . 1 . Repair Stations 1 | . . . . . . . 1 . . . Recycling Units . | . . . . . . . . . . . Scanalyzers . | . . . . . . . . . . . Garrison Access . | . . . . . . . . . . . Total Hacks 25 | . 2 . 1 1 . 13 4 . 3 1 Successful 15 | . 2 . 1 1 . 8 1 . 1 1 Failed 10 | . . . . . . 5 3 . 2 . Catastrophic 1 | . . . . . . . 1 . . . Database Lockouts . | . . . . . . . . . . . Manual 1 | . . . 1 . . . . . . . Terminals 16 | . 2 . . . . 13 1 . . . Fabricators 3 | . . . . . . . . . 3 . Repair Stations 3 | . . . . . . . 3 . . . Recycling Units . | . . . . . . . . . . . Scanalyzers . | . . . . . . . . . . . Garrison Access . | . . . . . . . . . . . Terminal Hacks 13 | . 2 . 1 1 . 8 . . . 1 Robot Schematic 1 | . . . . . . 1 . . . . Prototype ID Bank 3 | . 1 . . . . 2 . . . . Open Door 4 | . . . . 1 . 2 . . . 1 Emergency Access Points 1 | . . . . . . 1 . . . . Locate Traps 1 | . . . . . . 1 . . . . Recall Investigation 1 | . . . . . . 1 . . . . Hauler Manifests 1 | . 1 . . . . . . . . . Derelict Proto ID Bank 1 | . . . 1 . . . . . . . Fabricator Hacks 1 | . . . . . . . . . 1 . Load Schematic 1 | . . . . . . . . . 1 . Repair Station Hacks 1 | . . . . . . . 1 . . . Scan Component 1 | . . . . . . . 1 . . . Recycling Unit Hacks . | . . . . . . . . . . . Scanalyzer . | . . . . . . . . . . . Garrison Access Hacks . | . . . . . . . . . . . Unauthorized Hacks . | . . . . . . . . . . . Terminals . | . . . . . . . . . . . Fabricators . | . . . . . . . . . . . Repair Stations . | . . . . . . . . . . . Recycling Units . | . . . . . . . . . . . Scanalyzers . | . . . . . . . . . . . Garrison Access . | . . . . . . . . . . . Data Cores Recovered . | . . . . . . . . . . . Used . | . . . . . . . . . . . Hacking Detections 7 | . . . . . . 4 2 . 1 . Full Trace Events 2 | . . . . . . 1 . . 1 . Feedback Events . | . . . . . . . . . . . Feedback Blocked . | . . . . . . . . . . . Robot Schematics Acquired 1 | . . . . . . 1 . . . . Robots Built . | . . . . . . . . . . . Authchips . | . . . . . . . . . . . Time . | . . . . . . . . . . . Total Robot Build Rating . | . . . . . . . . . . . Part Schematics Acquired . | . . . . . . . . . . . Parts Built . | . . . . . . . . . . . Authchips . | . . . . . . . . . . . Time . | . . . . . . . . . . . Total Part Build Rating . | . . . . . . . . . . . Parts Repaired . | . . . . . . . . . . . Time . | . . . . . . . . . . . Parts Recycled . | . . . . . . . . . . . Recycled Matter . | . . . . . . . . . . . Retrieved Matter . | . . . . . . . . . . . Retrieved Components . | . . . . . . . . . . . Parts Scanalyzed . | . . . . . . . . . . . Part Schematics Acquired . | . . . . . . . . . . . Parts Damaged . | . . . . . . . . . . . Bothacking | -11 -10 -10 -10 -9 -8 -8 -7 -7 -7 -7 ------------ Run | Yrd Mat Min Exi Min Mat Sto Fac Was Fac Low Used RIF Installer . | . . . . . . . . . . . Robots Hacked . | . . . . . . . . . . . Non-combat . | . . . . . . . . . . . Combat . | . . . . . . . . . . . Robot Hacks Applied . | . . . . . . . . . . . Relay Couplers Released . | . . . . . . . . . . . Fabnet Peak Effective % . | . . . . . . . . . . . Robots Rewired . | . . . . . . . . . . . Allies Hacked . | . . . . . . . . . . . Hacks Repelled . | . . . . . . . . . . . Allies | -11 -10 -10 -10 -9 -8 -8 -7 -7 -7 -7 -------- Run | Yrd Mat Min Exi Min Mat Sto Fac Was Fac Low Total Allies 7 | . . . . 2 . 4 . 1 . . Largest Group 2 | . . . . 2 . 2 1 1 . . Highest-Rated Group 49 | . . . . 49 . 33 15 31 . . Highest-Rated Ally 31 | . . . . 31 . 18 15 31 . . Total Orders . | . . . . . . . . . . . Ally Attacks 35 | . . . . 4 . 19 . 12 . . Total Damage 732 | . . . . . . 505 . 227 . . Kills 9 | . . . . . . 9 . . . . Allies Corrupted . | . . . . . . . . . . . Allies Melted . | . . . . . . . . . . . Field Lobotomies 4 | . . . . . . 4 . . . . Intel | -11 -10 -10 -10 -9 -8 -8 -7 -7 -7 -7 ------- Run | Yrd Mat Min Exi Min Mat Sto Fac Was Fac Low Robot Analysis Total . | . . . . . . . . . . . Derelict Logs Recovered 2 | . . 1 . . . . . . . 1 Drone Launches . | . . . . . . . . . . . Drone Recoveries . | . . . . . . . . . . . Exploration | -11 -10 -10 -10 -9 -8 -8 -7 -7 -7 -7 ------------- Run | Yrd Mat Min Exi Min Mat Sto Fac Was Fac Low Turns Passed 6701 | 54 352 320 350 408 386 1146 355 265 892 2173 Spaces Moved 2544 | 41 226 210 257 135 153 420 163 114 398 427 Core 127 | 8 . . . . . . . 2 . 117 Treads 795 | . . . . . . . . 87 398 310 Legs 1622 | 33 226 210 257 135 153 420 163 25 . . Wheels . | . . . . . . . . . . . Hover . | . . . . . . . . . . . Flight . | . . . . . . . . . . . Fastest Speed 50 | 50 120 120 120 260 120 120 190 160 160 160 Average Speed 210 | 106 120 120 135 260 174 176 191 178 160 452 Slowest Speed 1300 | 120 120 120 260 260 190 330 192 800 160 1300 Overloaded Moves . | . . . . . . . . . . . Propulsion Burnouts . | . . . . . . . . . . . Robots Hopped . | . . . . . . . . . . . Cave-ins Triggered . | . . . . . . . . . . . Exploration Rate (%) 37 | 2 44 39 63 35 13 61 4 91 9 53 Regions Visited 10 Branch Regions 5 Pre-discovered Areas . | . . . . . . . . . . . Known Exits Taken 3 | . . . . . 1 1 . . 1 . Unknown Exits Taken 5 | 1 1 1 1 1 . . . . . . Scrap Searched 12 | . . 1 . . . . . . . 11 Spaces Dug 30 | . . . . . 30 . . . . . Terrain Destroyed 163 | . 21 . . . 30 . . . 48 64 Melee . | . . . . . . . . . . . Projectile . | . . . . . . . . . . . AOE 163 | . 21 . . . 30 . . . 48 64 Terrain Rammed . | . . . . . . . . . . . Walls Destroyed . | . . . . . . . . . . . Machines Disabled . | . . . . . . . . . . . Actions | -11 -10 -10 -10 -9 -8 -8 -7 -7 -7 -7 --------- Run | Yrd Mat Min Exi Min Mat Sto Fac Was Fac Low Total 3548 | 52 278 249 259 180 240 712 197 148 638 595 Wait 557 | . 6 11 . 30 39 180 5 . 194 92 Move 2535 | 40 225 209 256 134 152 419 163 113 397 427 Hop . | . . . . . . . . . . . Pick Up 101 | 8 15 4 2 5 12 13 10 6 16 10 Fast Attach . | . . . . . . . . . . . Attach 71 | 3 8 5 . 2 4 16 6 6 11 10 Detach 5 | . . . . 1 . 2 . . 1 1 Swap 46 | . 3 . 1 1 13 13 1 . 4 10 Drop 34 | 1 5 3 . 1 3 5 4 . 6 6 Fire 191 | . 15 16 . 6 17 59 8 23 8 39 Melee . | . . . . . . . . . . . Ram . | . . . . . . . . . . . Kick 7 | . 1 1 . . . 5 . . . . Crush 1 | . . . . . . . . . 1 . Escape Stasis . | . . . . . . . . . . . Rewire . | . . . . . . . . . . . Trap . | . . . . . . . . . . . Miscellaneous . | . . . . . . . . . . . Route ------- -11/Scrapyard -10/Materials (discovered 2 exits: [*Mat] / [*Min]) -10/Mines (discovered 2 exits: [*Mat] / *Exi) -10/Exiles -9/Mines -8/Materials (discovered 2 exits: *Sto x2) -8/Storage -7/Factory -7/Waste -7/Factory -7/Lower Caves History --------- Turn | Location | Event 3 | -11/Scrapyard | Discovered new exit (range 15) 55 | -11/Scrapyard | Entered Materials 305 | -10/Materials | Discovered new exit (range 5) 307 | -10/Materials | Build established: Mutant 345 | -10/Materials | Discovered new exit (range 5) 407 | -10/Materials | Entered Mines 586 | -10/Mines | Found a damaged Exp. Sensor Array with a note attached 589 | -10/Mines | Found Prototype Device 590 | -10/Mines | Identified Exp. Sensor Array 606 | -10/Mines | Discovered new exit (range 9) 722 | -10/Mines | Deemed a non-threat by the Exiles lab entrance 722 | -10/Mines | Discovered new exit (range 5) 727 | -10/Mines | Entered Exiles 756 | -10/Exiles | Met 8R-AWN 777 | -10/Exiles | Met EX-HEX 832 | -10/Exiles | Met EX-BIN 849 | -10/Exiles | Aligned with FarCom system 850 | -10/Exiles | Given EX-Vault access code 877 | -10/Exiles | Opened EX-Vault 883 | -10/Exiles | Found Field Lobotomy Kit 907 | -10/Exiles | Warned to stay clear of 0b10 Research branches 942 | -10/Exiles | Met EX-DEC 1046 | -10/Exiles | Discovered new exit (range 14) 1077 | -10/Exiles | Left Exiles lab with Field Lobotomy Kit 1077 | -10/Exiles | Entered Mines 1089 | -9/Mines | Met a Derelict who couldn't figure out how to use a Trap Extractor 1418 | -9/Mines | Core integrity fell below 50% 1431 | -9/Mines | Discovered new exit (range 16) 1485 | -9/Mines | Entered Materials 1485 | -8/Materials | Evolved 4 slots: Propulsion x3, Utility x1 1486 | -8/Materials | Identified exit to Storage 1848 | -8/Materials | Discovered exit to Storage (range 11) 1871 | -8/Materials | Entered Storage 2364 | -8/Storage | Assimilated Y-45 Defender with FLK Orb 2442 | -8/Storage | Assimilated L-31 Rogue with FLK Orb 2492 | -8/Storage | Assimilated K-01 Serf with FLK Orb 2563 | -8/Storage | Build established: Scavenger-Mutant 2842 | -8/Storage | Discovered new exit (range 14) 2900 | -8/Storage | Assimilated Y-45 Defender with FLK Orb 2937 | -8/Storage | Lost 9 parts (1p4n2u2w) 3015 | -8/Storage | Identified exit to Factory 3017 | -8/Storage | Entered Factory 3017 | -7/Factory | Accompanied by 1 ally 3017 | -7/Factory | Evolved 2 slots: Utility x2 3071 | -7/Factory | P-60 Hacker assimilated allied Defender 3b 3372 | -7/Factory | Sucked down chute 3372 | -7/Factory | Entered Waste 3373 | -7/Waste | Met a frightened Derelict 3387 | -7/Waste | EMP discharged 3415 | -7/Waste | Spotted C-40 Crusher 3447 | -7/Waste | Crushed by Compactor (1 part destroyed, 1 dropped) 3450 | -7/Waste | Crushed by Compactor (1 part destroyed, 1 dropped) 3453 | -7/Waste | Crushed by Compactor (1 part destroyed, 1 dropped) 3454 | -7/Waste | Destroyed C-40 Crusher 3484 | -7/Waste | Lost 5 parts (1p2n1u1w) 3487 | -7/Waste | EMP discharged 3487 | -7/Waste | System corruption reached 10% 3499 | -7/Waste | Spotted C-40 Crusher 3516 | -7/Waste | Crushed by Compactor (0 parts destroyed, 1 dropped) 3519 | -7/Waste | Crushed by Compactor (0 parts destroyed, 1 dropped) 3547 | -7/Waste | Spotted C-40 Crusher 3576 | -7/Waste | Spotted C-40 Crusher 3587 | -7/Waste | EMP discharged 3613 | -7/Waste | Discovered new exit (range 15) 3619 | -7/Waste | Spotted C-40 Crusher 3635 | -7/Waste | Identified exit to Factory 3637 | -7/Waste | Entered Factory 4137 | -7/Factory | Build established: Mutant 4335 | -7/Factory | Discovered new exit (range 11) 4527 | -7/Factory | Identified exit to Lower Caves 4529 | -7/Factory | Entered Lower Caves 4848 | -7/Lower Caves | Learned 4 Factory zone layouts 4874 | -7/Lower Caves | Attracted the attention of an 0b10 outpost 6068 | -7/Lower Caves | Build established: Derelict-Mutant 6635 | -7/Lower Caves | Spotted B-75 Beast 6702 | -7/Lower Caves | Self-destructed Last Messages --------------- Searching scrap... Found Mak. Leg. Found Hcp. Battery. Found Kinecellerator. Found 40 Matter. Acquired 35 matter. The unstable cave ceiling collapses. Acquired Kinecellerator. Searching scrap... Found Corruption Screen. Found Arm. Huge Wheel. Found Carbon-fiber Leg. Found 31 Matter. Acquired 10 matter. Mak. Shrapnel Gun destroyed. Critical hit (Meltdown: +330). Acquired 5 matter. Overheating: Matter decay (-39). Imp. Medium Armor Plating destroyed. Kinecellerator destroyed. Map ----- +----------------------------------------------------+ | ????????????????????????????????## ##?? | | ?????????????????????????????????# ## ### | | ????????????????????????????????# ### | | ?????????????????????????????? ##?# | | ?????????????????????????????? ##??## | | ?????????????????????????????? #????## | | ?????????????????????????????? ##?????## | | ???????????????????????????????# #???????# | | ???????????????????????????????## ????????# | | ????????????????????????????????## ????????## | | ?????????????????????????? ??????###???## ????## | | ????????????????????????# ??????????## ?##??# | | ??????????????????????? ??????????# ### ### | | ???????????????????????? ?????##### ## | | ????????????????????????? ???### | | ?????????????????????????# ??# | | ??????????????????????????# ??# ## | | ???????????????????????????# ### | | ???????????????????????????# | | ??????????????????????#?????? | | ?????????????????????? ???????# | | ??????????????????##?? ???????# # | | ??????????????????# ## ???????# # | | ?????????#????????# #??####### # "" " | | ????????? ##### #?##% """ | | ?????????# ###@ " | | ????????? ! ####### ## ==! | | ????????????????##### ##?????# ### % | | ???????????????????# % ##??????## ####?## ### | | ?????????????????? ##????????####?????###?? | | ??????????### ## ##?????????????????????? | | ??????????# !%###????????????????????? | | ??????????# #????????????????? | | ??????????# BB %# #??????????????? | | ??????????# BB ## ##???????????????? | | ??????????# ##### #? # #?????????????????? | | ?????????# ????# #?? #?##?????????????????? | | ?????????## ?????? #??# ????????????????????? | | ??????????## ?????? #??? ???????????????????? | | ???????????# #???????### ???? #??????????????????? | | ???????????#????????????##??? #??????????????????? | | ??????????????????????????????#??????????????????? | | ?????????????????????????????????????????????????? | | ?????????????????????????????????????????????????? | | ?????????????????????????????????????????????????? | | ?????????????????????????????????????????????????? | | ?????????????????????????????????????????????????? | | ?????????????????????????????????????????????????? | | ?????????????????????????????????????????????????? | | ?????????????????????????????????????????????????? | +----------------------------------------------------+ Best States ------------- Heat Dissipation 71 Energy Generation 21 Energy Capacity 325 Matter Stores 300 Matter Capacity 300 Sight Range 16 Robot Scan Range 20 Terrain Scan Density 10 Armor Coverage 675 Weapon Shielding 66 Evasion (%) 55 Target Analysis 5 Recoil Reduction 3 Kinecelleration 30 Salvage Targeting 1 Trap Extractor Capacity 6 Item Schematics ----------------- None Robot Schematics ------------------ O-24 Administrator | -8/Storage | Hacked Fabricated ------------ Nothing Alien Tech Used ----------------- None Achievements -------------- I Spy Challenges ------------ None Game ------ Seed CouplerNovaShield Manual? 0 Play Time 01:01:10 Cumulative 7.2 hours Start 2024.04.06 @ 11:54:52 End 2024.04.06 @ 14:43:17 Sessions 1 Manual Loads 0 Difficulty Rogue Special Mode None Game No. 20 Rogue 20 Adventurer 0 Explorer 0 Win Type - Total 0 Types 0/0/0/0/0/0/0/0/0 Lore% 12 Gallery% 16 Achievement% 13 Wizard Run 0 Options --------- Layout 1 ASCII 0 Keyboard 0 Movement Mouse Keybinds 0 Fullscreen 1 Font 24/Smallcaps Map View 50x35 Zoom Use 0% Tactical HUD 0 Map Filters NONE Filters NONE Steam 1 RUN: 9f01bba9-810a-456e-8c87-265d84c452c6